[Event "Early-Titled-Tuesday-Blitz-March-19-2024"]
[Site "Chess.com"]
[Date "2024.03.19"]
[Round "2"]
[White "chess_blitz00"]
[Black "MuhittinBuker"]
[Result "1-0"]
[WhiteElo "2473"]
[BlackElo "2078"]
[TimeControl "180+1"]
[EndTime "8:16:39 PDT"]
[Termination "chess_blitz00 won by resignation"]

1. b3 {[%clk 0:03:00.9]} 1... d5 {[%clk 0:02:57.4]} 2. Bb2 {[%clk 0:03:01.3]}
2... c5 {[%clk 0:02:56.5]} 3. e3 {[%clk 0:02:59.6]} 3... Nc6 {[%clk 0:02:57]} 4.
Bb5 {[%clk 0:02:58.9]} 4... Nf6 {[%clk 0:02:56.6]} 5. Bxc6+ {[%clk 0:02:59]}
5... bxc6 {[%clk 0:02:56.5]} 6. f4 {[%clk 0:02:58.7]} 6... g6 {[%clk 0:02:56.7]}
7. Nf3 {[%clk 0:02:59.2]} 7... Bg7 {[%clk 0:02:57.2]} 8. O-O {[%clk 0:02:59.8]}
8... O-O {[%clk 0:02:57.7]} 9. d3 {[%clk 0:02:59.9]} 9... Qc7 {[%clk 0:02:53.8]}
10. Nc3 {[%clk 0:02:58.4]} 10... Bg4 {[%clk 0:02:52.9]} 11. Na4 {[%clk
0:02:58.2]} 11... Nd7 {[%clk 0:02:51.6]} 12. Bxg7 {[%clk 0:02:57.8]} 12... Kxg7
{[%clk 0:02:50.9]} 13. Qe1 {[%clk 0:02:58.7]} 13... Bxf3 {[%clk 0:02:50.8]} 14.
Rxf3 {[%clk 0:02:56.9]} 14... e5 {[%clk 0:02:50.4]} 15. f5 {[%clk 0:02:44.7]}
15... f6 {[%clk 0:02:49.5]} 16. Qh4 {[%clk 0:02:16.2]} 16... Rh8 {[%clk
0:02:26.1]} 17. Rh3 {[%clk 0:01:26.3]} 17... h6 {[%clk 0:02:23.4]} 18. fxg6
{[%clk 0:01:24.1]} 18... Qd6 {[%clk 0:02:20.2]} 19. Rf1 {[%clk 0:01:23.6]} 19...
Raf8 {[%clk 0:02:19]} 20. Rf5 {[%clk 0:01:22.2]} 20... Kxg6 {[%clk 0:02:02.3]}
21. Rh5 {[%clk 0:01:21.5]} 21... Kf7 {[%clk 0:02:00.8]} 22. Rxh6 {[%clk
0:01:22]} 22... Rxh6 {[%clk 0:02:00.4]} 23. Qxh6 {[%clk 0:01:22.9]} 23... Ke8
{[%clk 0:01:58.1]} 24. Qg6+ {[%clk 0:01:21.6]} 24... Kd8 {[%clk 0:01:57.3]} 25.
Rh7 {[%clk 0:01:22.2]} 25... Kc8 {[%clk 0:01:39.1]} 26. Qf5 {[%clk 0:01:19.3]}
26... Kd8 {[%clk 0:01:37.7]} 27. h4 {[%clk 0:01:05.8]} 27... e4 {[%clk
0:01:33.6]} 28. dxe4 {[%clk 0:00:50.8]} 28... dxe4 {[%clk 0:01:33.6]} 29. Qxe4
{[%clk 0:00:42.5]} 29... Re8 {[%clk 0:01:31]} 30. Qd3 {[%clk 0:00:35.3]} 30...
Qe6 {[%clk 0:01:16.4]} 31. Nxc5 {[%clk 0:00:31.1]} 1-0

[Event "Early-Titled-Tuesday-Blitz-March-19-2024"]
[Site "Chess.com"]
[Date "2024.03.19"]
[Round "2"]
[White "Vasily85"]
[Black "randy296"]
[Result "0-1"]
[WhiteElo "2449"]
[BlackElo "2126"]
[TimeControl "180+1"]
[EndTime "8:16:43 PDT"]
[Termination "randy296 won by resignation"]

1. e4 {[%clk 0:03:00.9]} 1... c5 {[%clk 0:02:57.3]} 2. Nf3 {[%clk 0:03:00.3]}
2... d6 {[%clk 0:02:57]} 3. Nc3 {[%clk 0:02:54.7]} 3... g6 {[%clk 0:02:55.6]} 4.
d4 {[%clk 0:02:49.1]} 4... cxd4 {[%clk 0:02:53.8]} 5. Nxd4 {[%clk 0:02:50]} 5...
Nf6 {[%clk 0:02:51.7]} 6. Be3 {[%clk 0:02:45.9]} 6... Bg7 {[%clk 0:02:51.5]} 7.
f3 {[%clk 0:02:46.2]} 7... O-O {[%clk 0:02:52]} 8. Qd2 {[%clk 0:02:44.7]} 8...
Nc6 {[%clk 0:02:52.4]} 9. Bc4 {[%clk 0:02:44.8]} 9... Bd7 {[%clk 0:02:51.9]} 10.
O-O-O {[%clk 0:02:44]} 10... Rc8 {[%clk 0:02:52.4]} 11. Bb3 {[%clk 0:02:44.2]}
11... Ne5 {[%clk 0:02:52.8]} 12. h4 {[%clk 0:02:43.7]} 12... Nc4 {[%clk
0:02:53.2]} 13. Bxc4 {[%clk 0:02:41.5]} 13... Rxc4 {[%clk 0:02:53.7]} 14. h5
{[%clk 0:02:42.2]} 14... Qc7 {[%clk 0:02:53.9]} 15. hxg6 {[%clk 0:02:12.2]}
15... fxg6 {[%clk 0:02:53.6]} 16. Bh6 {[%clk 0:02:06.8]} 16... Nxe4 {[%clk
0:02:49.7]} 17. fxe4 {[%clk 0:01:33]} 17... Rxd4 {[%clk 0:02:48.9]} 18. Qe3
{[%clk 0:01:32.1]} 18... Rxd1+ {[%clk 0:02:47.8]} 19. Kxd1 {[%clk 0:00:58.7]}
19... Bxh6 {[%clk 0:02:46]} 20. Qxh6 {[%clk 0:00:59.6]} 20... Rf7 {[%clk
0:02:45.7]} 21. Kc1 {[%clk 0:00:46.8]} 21... Qc4 {[%clk 0:02:35.7]} 22. Qg5
{[%clk 0:00:22.3]} 22... Bc6 {[%clk 0:02:20.9]} 23. a3 {[%clk 0:00:10.4]} 23...
Bxe4 {[%clk 0:02:11.6]} 24. Kb1 {[%clk 0:00:10.7]} 24... Rf1+ {[%clk 0:02:02.9]}
25. Rxf1 {[%clk 0:00:10.7]} 25... Qxf1+ {[%clk 0:02:02.8]} 26. Ka2 {[%clk
0:00:11.6]} 26... Bxc2 {[%clk 0:02:00.5]} 27. Qd5+ {[%clk 0:00:07.9]} 27... Qf7
{[%clk 0:01:59.3]} 28. a4 {[%clk 0:00:04]} 28... h5 {[%clk 0:01:53.8]} 29. a5
{[%clk 0:00:04]} 29... g5 {[%clk 0:01:51.8]} 30. Ka3 {[%clk 0:00:04.4]} 30...
Qxd5 {[%clk 0:01:51.7]} 31. Nxd5 {[%clk 0:00:05.3]} 31... Kf7 {[%clk 0:01:51.3]}
32. a6 {[%clk 0:00:02.4]} 32... bxa6 {[%clk 0:01:50]} 33. Nb4 {[%clk 0:00:03]}
33... Be4 {[%clk 0:01:48.5]} 34. g3 {[%clk 0:00:03.3]} 34... h4 {[%clk
0:01:48.2]} 35. gxh4 {[%clk 0:00:03.3]} 35... gxh4 {[%clk 0:01:48.5]} 36. Nxa6
{[%clk 0:00:04.2]} 36... h3 {[%clk 0:01:48.3]} 0-1

[Event "Early-Titled-Tuesday-Blitz-March-19-2024"]
[Site "Chess.com"]
[Date "2024.03.19"]
[Round "2"]
[White "Felix-Rose"]
[Black "Orest_Vovk"]
[Result "0-1"]
[WhiteElo "2262"]
[BlackElo "2529"]
[TimeControl "180+1"]
[EndTime "8:16:44 PDT"]
[Termination "Orest_Vovk won on time"]

1. e4 {[%clk 0:02:58.9]} 1... g5 {[%clk 0:02:57.9]} 2. d4 {[%clk 0:02:57.8]}
2... g4 {[%clk 0:02:57.3]} 3. Nc3 {[%clk 0:02:52.3]} 3... Bg7 {[%clk 0:02:56.9]}
4. Be3 {[%clk 0:02:50.5]} 4... d6 {[%clk 0:02:56.5]} 5. Qd2 {[%clk 0:02:46.7]}
5... c6 {[%clk 0:02:56.6]} 6. O-O-O {[%clk 0:02:45.8]} 6... Qa5 {[%clk
0:02:55.2]} 7. h3 {[%clk 0:02:41.7]} 7... h5 {[%clk 0:02:53.7]} 8. hxg4 {[%clk
0:02:40.8]} 8... hxg4 {[%clk 0:02:54]} 9. Rxh8 {[%clk 0:02:40.7]} 9... Bxh8
{[%clk 0:02:54.9]} 10. Bc4 {[%clk 0:02:37]} 10... b5 {[%clk 0:02:53.6]} 11. Bb3
{[%clk 0:02:37.4]} 11... Nd7 {[%clk 0:02:54.1]} 12. Nge2 {[%clk 0:02:29.8]}
12... Nb6 {[%clk 0:02:53.7]} 13. Ng3 {[%clk 0:02:28.3]} 13... Nc4 {[%clk
0:02:52.9]} 14. Bxc4 {[%clk 0:02:28.1]} 14... bxc4 {[%clk 0:02:53.8]} 15. Rh1
{[%clk 0:02:27.7]} 15... Bg7 {[%clk 0:02:47.3]} 16. Rh7 {[%clk 0:02:24.6]} 16...
Bf6 {[%clk 0:02:33.2]} 17. Nh5 {[%clk 0:02:24.6]} 17... Rb8 {[%clk 0:02:21.9]}
18. e5 {[%clk 0:01:19.8]} 18... dxe5 {[%clk 0:01:41.9]} 19. Nxf6+ {[%clk
0:01:18.9]} 19... Nxf6 {[%clk 0:01:38.5]} 20. Rh8+ {[%clk 0:01:18.5]} 20... Kd7
{[%clk 0:01:38.3]} 21. dxe5+ {[%clk 0:01:14.1]} 21... Nd5 {[%clk 0:01:37.8]} 22.
Qd1 {[%clk 0:00:07.7]} 22... Kc7 {[%clk 0:01:23.2]} 23. Bd4 {[%clk 0:00:02.1]}
23... Bf5 {[%clk 0:01:13.4]} 0-1

[Event "Early-Titled-Tuesday-Blitz-March-19-2024"]
[Site "Chess.com"]
[Date "2024.03.19"]
[Round "2"]
[White "balack95"]
[Black "abelmat"]
[Result "1-0"]
[WhiteElo "2472"]
[BlackElo "2073"]
[TimeControl "180+1"]
[EndTime "8:16:47 PDT"]
[Termination "balack95 won on time"]

1. Nf3 {[%clk 0:03:00.9]} 1... Nf6 {[%clk 0:02:28.8]} 2. b3 {[%clk 0:03:00.6]}
2... e6 {[%clk 0:02:27.7]} 3. Bb2 {[%clk 0:03:01.4]} 3... d5 {[%clk 0:02:28.1]}
4. e3 {[%clk 0:03:01.6]} 4... Be7 {[%clk 0:02:28.4]} 5. Be2 {[%clk 0:03:01.7]}
5... O-O {[%clk 0:02:28.8]} 6. O-O {[%clk 0:03:02.6]} 6... b6 {[%clk 0:02:28.6]}
7. d4 {[%clk 0:03:02.5]} 7... Bb7 {[%clk 0:02:29.1]} 8. c4 {[%clk 0:03:03.2]}
8... Nbd7 {[%clk 0:02:28.8]} 9. Nc3 {[%clk 0:03:00.7]} 9... c5 {[%clk
0:02:28.7]} 10. cxd5 {[%clk 0:03:00.4]} 10... Nxd5 {[%clk 0:02:27.1]} 11. Rc1
{[%clk 0:02:54.9]} 11... Nxc3 {[%clk 0:02:23.7]} 12. Bxc3 {[%clk 0:02:54.8]}
12... cxd4 {[%clk 0:02:23]} 13. exd4 {[%clk 0:02:54.7]} 13... Nf6 {[%clk
0:02:22.3]} 14. Ne5 {[%clk 0:02:53.6]} 14... Nd5 {[%clk 0:02:21]} 15. Bd2 {[%clk
0:02:50.2]} 15... Bb4 {[%clk 0:02:07.5]} 16. Bf3 {[%clk 0:02:49.9]} 16... Bxd2
{[%clk 0:02:06.2]} 17. Qxd2 {[%clk 0:02:50]} 17... Rc8 {[%clk 0:02:05.7]} 18. g3
{[%clk 0:02:45.2]} 18... Qd6 {[%clk 0:01:53.9]} 19. Kg2 {[%clk 0:02:40.7]} 19...
h6 {[%clk 0:01:46.7]} 20. h4 {[%clk 0:02:39.6]} 20... Qe7 {[%clk 0:01:29.8]} 21.
Rc4 {[%clk 0:02:36.6]} 21... Ba6 {[%clk 0:01:19.5]} 22. Rxc8 {[%clk 0:02:36.2]}
22... Rxc8 {[%clk 0:01:19.1]} 23. Rc1 {[%clk 0:02:36.9]} 23... Rxc1 {[%clk
0:01:09.5]} 24. Qxc1 {[%clk 0:02:37.8]} 24... Qc7 {[%clk 0:01:06.3]} 25. Qxc7
{[%clk 0:02:20.7]} 25... Nxc7 {[%clk 0:01:06.1]} 26. Nc6 {[%clk 0:02:21.6]}
26... Bd3 {[%clk 0:00:33.4]} 27. Nxa7 {[%clk 0:02:20.3]} 27... Bb1 {[%clk
0:00:33.2]} 28. a4 {[%clk 0:02:12.8]} 28... Bc2 {[%clk 0:00:31.8]} 29. Nc8
{[%clk 0:02:12.5]} 29... Bxb3 {[%clk 0:00:13.4]} 30. Nxb6 {[%clk 0:02:12.9]}
30... f6 {[%clk 0:00:10.8]} 31. a5 {[%clk 0:02:12.5]} 31... Kf8 {[%clk
0:00:07.8]} 32. Bb7 {[%clk 0:02:11.5]} 32... Bd5+ {[%clk 0:00:05.8]} 33. Nxd5
{[%clk 0:02:10.8]} 33... exd5 {[%clk 0:00:04.2]} 34. a6 {[%clk 0:02:11]} 34...
Nb5 {[%clk 0:00:03.2]} 35. Bxd5 {[%clk 0:02:10.8]} 35... Ke7 {[%clk 0:00:03.5]}
36. Bc6 {[%clk 0:02:08.3]} 36... Na7 {[%clk 0:00:02.9]} 37. d5 {[%clk
0:02:08.6]} 37... Kd6 {[%clk 0:00:03]} 38. Kf3 {[%clk 0:02:07.9]} 38... Nxc6
{[%clk 0:00:02.2]} 39. dxc6 {[%clk 0:02:07.8]} 39... Kxc6 {[%clk 0:00:02.3]} 40.
h5 {[%clk 0:02:08.5]} 40... Kb6 {[%clk 0:00:01.7]} 41. Kf4 {[%clk 0:02:09.2]}
41... Kxa6 {[%clk 0:00:02.6]} 42. Kf5 {[%clk 0:02:09.9]} 42... Kb6 {[%clk
0:00:03.5]} 43. Kg6 {[%clk 0:02:10.4]} 43... Kc6 {[%clk 0:00:04.4]} 44. Kxg7
{[%clk 0:02:11]} 44... Kd6 {[%clk 0:00:05.3]} 45. Kxf6 {[%clk 0:02:11.3]} 1-0

[Event "Early-Titled-Tuesday-Blitz-March-19-2024"]
[Site "Chess.com"]
[Date "2024.03.19"]
[Round "2"]
[White "CarlosjPineror"]
[Black "Sina_Movahed"]
[Result "0-1"]
[WhiteElo "2718"]
[BlackElo "3090"]
[TimeControl "180+1"]
[EndTime "8:16:48 PDT"]
[Termination "Sina_Movahed won by resignation"]

1. e4 {[%clk 0:03:00.9]} 1... c5 {[%clk 0:02:59.7]} 2. Nf3 {[%clk 0:02:59.7]}
2... d6 {[%clk 0:03:00.3]} 3. d4 {[%clk 0:02:59.8]} 3... cxd4 {[%clk 0:03:01.2]}
4. Nxd4 {[%clk 0:03:00.5]} 4... Nf6 {[%clk 0:03:01.9]} 5. Nc3 {[%clk 0:03:01.2]}
5... g6 {[%clk 0:03:02.6]} 6. Be3 {[%clk 0:03:01.2]} 6... a6 {[%clk 0:03:03.2]}
7. f3 {[%clk 0:03:00.7]} 7... h5 {[%clk 0:03:03.9]} 8. Qd2 {[%clk 0:03:01]} 8...
Nbd7 {[%clk 0:03:04.4]} 9. a4 {[%clk 0:02:36.8]} 9... Bg7 {[%clk 0:03:03.6]} 10.
Be2 {[%clk 0:02:37.1]} 10... h4 {[%clk 0:03:00.6]} 11. Nd1 {[%clk 0:02:25.5]}
11... d5 {[%clk 0:02:49.9]} 12. exd5 {[%clk 0:02:22.5]} 12... Nxd5 {[%clk
0:02:48.8]} 13. Bf2 {[%clk 0:01:58.7]} 13... h3 {[%clk 0:02:13.6]} 14. g3 {[%clk
0:01:58.1]} 14... O-O {[%clk 0:02:10.1]} 15. c4 {[%clk 0:01:51.6]} 15... N5f6
{[%clk 0:02:09.1]} 16. Nc3 {[%clk 0:01:38]} 16... Nc5 {[%clk 0:01:56.3]} 17. b4
{[%clk 0:01:30.9]} 17... e5 {[%clk 0:01:42.7]} 18. bxc5 {[%clk 0:00:43.6]} 18...
exd4 {[%clk 0:01:42.2]} 19. Bxd4 {[%clk 0:00:44.2]} 19... Re8 {[%clk 0:01:42.4]}
20. O-O {[%clk 0:00:42.8]} 20... Ne4 {[%clk 0:01:42.2]} 21. Nxe4 {[%clk
0:00:36.1]} 21... Bxd4+ {[%clk 0:01:38.9]} 22. Kh1 {[%clk 0:00:35.9]} 22... Bxa1
{[%clk 0:01:39.5]} 23. Qxd8 {[%clk 0:00:35.3]} 23... Rxd8 {[%clk 0:01:40.1]} 24.
Rxa1 {[%clk 0:00:36]} 24... Bd7 {[%clk 0:01:39.5]} 25. a5 {[%clk 0:00:32.1]}
25... Bc6 {[%clk 0:01:39.4]} 26. Nd6 {[%clk 0:00:32.1]} 26... Rd7 {[%clk
0:01:33.4]} 27. Kg1 {[%clk 0:00:31.8]} 27... Re7 {[%clk 0:01:32.9]} 28. Kf2
{[%clk 0:00:32.5]} 28... Re5 {[%clk 0:01:33.6]} 29. Rb1 {[%clk 0:00:24.3]} 29...
Rb8 {[%clk 0:01:22.6]} 30. Rb6 {[%clk 0:00:16.7]} 30... Rxc5 {[%clk 0:01:21.9]}
31. Ke3 {[%clk 0:00:16.3]} 31... Re5+ {[%clk 0:01:19.7]} 32. Kd3 {[%clk
0:00:15.2]} 32... Rxa5 {[%clk 0:01:19.7]} 33. f4 {[%clk 0:00:13.7]} 33... Rd8
{[%clk 0:01:19.2]} 0-1

[Event "Early-Titled-Tuesday-Blitz-March-19-2024"]
[Site "Chess.com"]
[Date "2024.03.19"]
[Round "2"]
[White "davidarenas1224"]
[Black "martinmena"]
[Result "1-0"]
[WhiteElo "2534"]
[BlackElo "2275"]
[TimeControl "180+1"]
[EndTime "8:16:48 PDT"]
[Termination "davidarenas1224 won by resignation"]

1. e4 {[%clk 0:03:00.9]} 1... c6 {[%clk 0:02:57.5]} 2. d4 {[%clk 0:02:59.9]}
2... d5 {[%clk 0:02:58.4]} 3. e5 {[%clk 0:03:00.3]} 3... Bf5 {[%clk 0:02:55.2]}
4. Nd2 {[%clk 0:03:00]} 4... e6 {[%clk 0:02:55.2]} 5. Nb3 {[%clk 0:03:00.5]}
5... Nd7 {[%clk 0:02:48.1]} 6. Nf3 {[%clk 0:03:00.6]} 6... Ne7 {[%clk
0:02:47.4]} 7. Be2 {[%clk 0:02:58.5]} 7... c5 {[%clk 0:02:42.3]} 8. c3 {[%clk
0:02:50.8]} 8... cxd4 {[%clk 0:02:36.8]} 9. cxd4 {[%clk 0:02:50.3]} 9... Nc6
{[%clk 0:02:37.1]} 10. O-O {[%clk 0:02:49.8]} 10... Be7 {[%clk 0:02:34.3]} 11.
a4 {[%clk 0:02:43.4]} 11... a5 {[%clk 0:02:27.4]} 12. Bd2 {[%clk 0:02:42.9]}
12... O-O {[%clk 0:02:24.9]} 13. Bc3 {[%clk 0:02:41.2]} 13... Nb4 {[%clk
0:02:21.9]} 14. Ne1 {[%clk 0:02:41.3]} 14... Nb6 {[%clk 0:02:06.7]} 15. g4
{[%clk 0:02:37.5]} 15... Bg6 {[%clk 0:02:04.3]} 16. f4 {[%clk 0:02:36.5]} 16...
f6 {[%clk 0:01:44.5]} 17. Nc5 {[%clk 0:02:24.5]} 17... Bxc5 {[%clk 0:01:18.3]}
18. dxc5 {[%clk 0:02:25.4]} 18... Nc4 {[%clk 0:01:11.6]} 19. Bxc4 {[%clk
0:02:13.7]} 19... dxc4 {[%clk 0:01:12.5]} 20. f5 {[%clk 0:01:59.6]} 20... Bf7
{[%clk 0:00:55.2]} 21. Qd6 {[%clk 0:01:52.1]} 21... Nd5 {[%clk 0:00:37.1]} 22.
fxe6 {[%clk 0:01:45.6]} 22... Bg6 {[%clk 0:00:20.6]} 23. Ng2 {[%clk 0:01:18.7]}
23... Qe7 {[%clk 0:00:14.5]} 24. Qxd5 {[%clk 0:01:17.5]} 24... Rfd8 {[%clk
0:00:14.4]} 25. exf6 {[%clk 0:01:12.3]} 25... gxf6 {[%clk 0:00:09.3]} 26. Qf3
{[%clk 0:01:10.9]} 26... f5 {[%clk 0:00:02.1]} 27. gxf5 {[%clk 0:01:08.9]} 1-0

[Event "Early-Titled-Tuesday-Blitz-March-19-2024"]
[Site "Chess.com"]
[Date "2024.03.19"]
[Round "2"]
[White "Arteler"]
[Black "Ural_bogatyr"]
[Result "0-1"]
[WhiteElo "2384"]
[BlackElo "2606"]
[TimeControl "180+1"]
[EndTime "8:16:50 PDT"]
[Termination "Ural_bogatyr won on time"]

1. Nf3 {[%clk 0:03:00]} 1... d5 {[%clk 0:02:53.2]} 2. c4 {[%clk 0:03:00]} 2...
e6 {[%clk 0:02:51.9]} 3. Nc3 {[%clk 0:02:59.5]} 3... d4 {[%clk 0:02:49.6]} 4.
Nb5 {[%clk 0:02:51]} 4... c5 {[%clk 0:02:47.4]} 5. d3 {[%clk 0:02:37.5]} 5... a6
{[%clk 0:02:44.9]} 6. Na3 {[%clk 0:02:35.7]} 6... Nc6 {[%clk 0:02:43.9]} 7. g3
{[%clk 0:02:28.8]} 7... e5 {[%clk 0:02:43]} 8. Bg2 {[%clk 0:02:27.9]} 8... Nf6
{[%clk 0:02:40.5]} 9. Nd2 {[%clk 0:02:23]} 9... Be7 {[%clk 0:02:35.8]} 10. O-O
{[%clk 0:02:20.3]} 10... O-O {[%clk 0:02:35.3]} 11. Nc2 {[%clk 0:02:12.4]} 11...
Bf5 {[%clk 0:02:30.1]} 12. a3 {[%clk 0:02:07.3]} 12... a5 {[%clk 0:02:27.2]} 13.
Rb1 {[%clk 0:01:45.7]} 13... a4 {[%clk 0:02:26.8]} 14. Nf3 {[%clk 0:01:22.2]}
14... h6 {[%clk 0:02:15.1]} 15. Bd2 {[%clk 0:00:47.9]} 15... e4 {[%clk
0:02:06.6]} 16. dxe4 {[%clk 0:00:44.4]} 16... Nxe4 {[%clk 0:02:03.3]} 17. e3
{[%clk 0:00:26.8]} 17... Re8 {[%clk 0:01:23.4]} 18. exd4 {[%clk 0:00:23.5]}
18... cxd4 {[%clk 0:01:23.1]} 19. Bf4 {[%clk 0:00:20.3]} 19... Bf6 {[%clk
0:01:21]} 20. Re1 {[%clk 0:00:10.9]} 20... Qd7 {[%clk 0:01:17]} 21. Rc1 {[%clk
0:00:10.4]} 21... Rad8 {[%clk 0:01:13.7]} 22. Nd2 {[%clk 0:00:05.1]} 22... Nc5
{[%clk 0:01:09.1]} 23. Nf3 {[%clk 0:00:02.8]} 23... Nd3 {[%clk 0:01:08.4]} 0-1

[Event "Early-Titled-Tuesday-Blitz-March-19-2024"]
[Site "Chess.com"]
[Date "2024.03.19"]
[Round "2"]
[White "Blitzstream"]
[Black "Crazy_girl99"]
[Result "0-1"]
[WhiteElo "2827"]
[BlackElo "2612"]
[TimeControl "180+1"]
[EndTime "8:16:51 PDT"]
[Termination "Crazy_girl99 won by checkmate"]

1. e4 {[%clk 0:03:00.9]} 1... e5 {[%clk 0:02:57.7]} 2. Nf3 {[%clk 0:03:01]} 2...
Nc6 {[%clk 0:02:58]} 3. d4 {[%clk 0:03:01.7]} 3... exd4 {[%clk 0:02:58.3]} 4.
Nxd4 {[%clk 0:03:02.6]} 4... Nf6 {[%clk 0:02:58.5]} 5. Nxc6 {[%clk 0:03:02.5]}
5... bxc6 {[%clk 0:02:59.4]} 6. e5 {[%clk 0:03:03.1]} 6... Qe7 {[%clk 0:03:00]}
7. Qe2 {[%clk 0:03:03.6]} 7... Nd5 {[%clk 0:03:00.8]} 8. c4 {[%clk 0:03:04.1]}
8... Ba6 {[%clk 0:03:00.9]} 9. b3 {[%clk 0:03:04.7]} 9... g6 {[%clk 0:03:01.1]}
10. Bb2 {[%clk 0:03:04.8]} 10... Bg7 {[%clk 0:03:01.4]} 11. g3 {[%clk
0:03:05.3]} 11... O-O {[%clk 0:03:01.5]} 12. Bg2 {[%clk 0:03:05.9]} 12... Rae8
{[%clk 0:02:59.5]} 13. O-O {[%clk 0:03:06]} 13... f6 {[%clk 0:02:42.8]} 14. Qd2
{[%clk 0:02:50]} 14... Nb6 {[%clk 0:02:30.8]} 15. exf6 {[%clk 0:02:39.3]} 15...
Bxf6 {[%clk 0:02:30.5]} 16. Nc3 {[%clk 0:02:21.7]} 16... Qg7 {[%clk 0:02:30.1]}
17. Rfe1 {[%clk 0:02:06.5]} 17... Bxc4 {[%clk 0:02:18.7]} 18. Rac1 {[%clk
0:01:19.2]} 18... Be6 {[%clk 0:02:05.5]} 19. Ba3 {[%clk 0:01:11.6]} 19... Be7
{[%clk 0:01:58.4]} 20. Bxe7 {[%clk 0:01:07.1]} 20... Rxe7 {[%clk 0:01:58.6]} 21.
Ne4 {[%clk 0:00:57.5]} 21... Bd5 {[%clk 0:01:57.1]} 22. Nc5 {[%clk 0:00:54.2]}
22... Bxg2 {[%clk 0:01:47.6]} 23. Kxg2 {[%clk 0:00:52.3]} 23... Nd5 {[%clk
0:01:47.4]} 24. Rxe7 {[%clk 0:00:42]} 24... Qxe7 {[%clk 0:01:47]} 25. Qd3 {[%clk
0:00:31.7]} 25... Qg5 {[%clk 0:01:42.9]} 26. Qc4 {[%clk 0:00:26.7]} 26... Qf5
{[%clk 0:01:15.1]} 27. f4 {[%clk 0:00:18.1]} 27... Rf7 {[%clk 0:01:12.7]} 28.
Qd4 {[%clk 0:00:17.8]} 28... Qg4 {[%clk 0:01:09.5]} 29. Rf1 {[%clk 0:00:15.6]}
29... Re7 {[%clk 0:01:05.1]} 30. Ne4 {[%clk 0:00:13.8]} 30... Qe2+ {[%clk
0:01:02.8]} 31. Nf2 {[%clk 0:00:11.6]} 31... Ne3+ {[%clk 0:01:02.9]} 32. Kg1
{[%clk 0:00:12.2]} 32... Qxf1# {[%clk 0:01:03.1]} 0-1

[Event "Early-Titled-Tuesday-Blitz-March-19-2024"]
[Site "Chess.com"]
[Date "2024.03.19"]
[Round "2"]
[White "Andrei_Skvortsov"]
[Black "Hikaru"]
[Result "0-1"]
[WhiteElo "2736"]
[BlackElo "3286"]
[TimeControl "180+1"]
[EndTime "8:16:55 PDT"]
[Termination "Hikaru won by resignation"]

1. Nc3 {[%clk 0:03:00.9]} 1... g6 {[%clk 0:02:59.8]} 2. d4 {[%clk 0:03:00.5]}
2... Bg7 {[%clk 0:03:00.2]} 3. Bf4 {[%clk 0:03:01]} 3... d6 {[%clk 0:03:00.5]}
4. Nf3 {[%clk 0:03:01.1]} 4... a6 {[%clk 0:03:00.7]} 5. Qd2 {[%clk 0:03:00.7]}
5... Nd7 {[%clk 0:03:00.6]} 6. e4 {[%clk 0:02:59.5]} 6... c5 {[%clk 0:03:00.9]}
7. d5 {[%clk 0:02:49.5]} 7... b5 {[%clk 0:03:00.8]} 8. Be2 {[%clk 0:02:41.7]}
8... Ngf6 {[%clk 0:02:47.1]} 9. Qe3 {[%clk 0:02:29.9]} 9... h6 {[%clk 0:02:36]}
10. h3 {[%clk 0:02:28.3]} 10... Bb7 {[%clk 0:02:35.9]} 11. a4 {[%clk 0:02:23.4]}
11... b4 {[%clk 0:02:33.3]} 12. Nd1 {[%clk 0:02:23.9]} 12... O-O {[%clk
0:02:30.2]} 13. O-O {[%clk 0:02:23.8]} 13... Bxd5 {[%clk 0:02:26.7]} 14. exd5
{[%clk 0:02:10.4]} 14... Nxd5 {[%clk 0:02:27.6]} 15. Qd2 {[%clk 0:02:10.6]}
15... Nxf4 {[%clk 0:02:27.8]} 16. Qxf4 {[%clk 0:02:11.5]} 16... d5 {[%clk
0:02:28.6]} 17. Qd2 {[%clk 0:02:06.5]} 17... e6 {[%clk 0:02:24.5]} 18. c3 {[%clk
0:02:06.8]} 18... a5 {[%clk 0:02:24.3]} 19. Bb5 {[%clk 0:02:06.2]} 19... Nf6
{[%clk 0:02:23.7]} 20. Re1 {[%clk 0:02:00]} 20... Ne4 {[%clk 0:02:23.1]} 21. Qc2
{[%clk 0:02:00.5]} 21... Rc8 {[%clk 0:02:18.8]} 22. Ne3 {[%clk 0:01:58]} 22...
bxc3 {[%clk 0:02:17.7]} 23. bxc3 {[%clk 0:01:51.4]} 23... Nxc3 {[%clk
0:02:13.8]} 24. Rac1 {[%clk 0:01:49.1]} 24... c4 {[%clk 0:02:06.8]} 25. Qd2
{[%clk 0:01:41.4]} 25... Ne4 {[%clk 0:01:59.4]} 26. Qc2 {[%clk 0:01:40.7]} 26...
Nd6 {[%clk 0:01:58.6]} 27. Red1 {[%clk 0:01:38.2]} 27... Nxb5 {[%clk 0:01:56.8]}
28. axb5 {[%clk 0:01:38.4]} 28... Qb6 {[%clk 0:01:57]} 29. Qa4 {[%clk
0:01:37.2]} 29... Rc5 {[%clk 0:01:57]} 30. Nd4 {[%clk 0:01:30.9]} 30... Bxd4
{[%clk 0:01:56.4]} 31. Rxd4 {[%clk 0:01:31.8]} 31... Rxb5 {[%clk 0:01:54.4]} 32.
Rh4 {[%clk 0:01:29.6]} 32... h5 {[%clk 0:01:52.7]} 33. Qa1 {[%clk 0:01:30.1]}
33... Rb2 {[%clk 0:01:50.6]} 34. Nd1 {[%clk 0:01:26.3]} 34... Re2 {[%clk
0:01:47.7]} 35. Qf6 {[%clk 0:01:25.8]} 35... Qd8 {[%clk 0:01:44.1]} 36. Qf4
{[%clk 0:01:14.4]} 36... Re1+ {[%clk 0:01:43.8]} 37. Kh2 {[%clk 0:01:14.2]}
37... Qb8 {[%clk 0:01:44.2]} 38. Ra1 {[%clk 0:00:57.4]} 38... Qxf4+ {[%clk
0:01:42.6]} 39. Rxf4 {[%clk 0:00:58.3]} 39... c3 {[%clk 0:01:42.3]} 40. Rc1
{[%clk 0:00:50]} 40... c2 {[%clk 0:01:16.8]} 41. Rxc2 {[%clk 0:00:49.9]} 41...
Rxd1 {[%clk 0:01:17.2]} 42. Ra4 {[%clk 0:00:50.4]} 42... Ra8 {[%clk 0:01:14.5]}
43. f4 {[%clk 0:00:49.4]} 43... Re1 {[%clk 0:01:11.4]} 44. g3 {[%clk 0:00:39.7]}
44... Re4 {[%clk 0:01:10.1]} 45. Ra3 {[%clk 0:00:40.2]} 45... h4 {[%clk
0:01:09.9]} 0-1